fUST/lending_fUST_20240126
["ID","MTS","AMOUNT","RATE_DAILY","PERIOD"]
[312802830,1706271039156,-333.451392,0.00041933,4]
[312802832,1706271039166,-4324.98824791,0.00041934,4]
[312802834,1706271039175,-159.87293361,0.00041935,4]
[312802835,1706271039184,-8002.80967065,0.00041935,4]
[312802836,1706271039193,-7397.29,0.0004197,3]
[312802837,1706271039202,-634.87848386,0.0004197,3]
[312802838,1706271040886,237.54504322,0.0004,4]
[312802839,1706271041159,-398.67944186,0.0004,4]
[312802840,1706271041169,-2807.11854578,0.00041933,4]
[312802841,1706271041179,-5529.52151614,0.0004197,3]
[312802842,1706271041188,-5137.0,0.0004197,3]
[312802843,1706271041198,-1376.33547186,0.0004197,3]
[312802844,1706271041210,-2904.50452814,0.0004197,3]
[312802845,1706271041220,-169.57429663,0.00041978,4]
[312802846,1706271041229,-906.63660077,0.00041978,4]
[312802847,1706271041238,-45784.45941238,0.0004198,10]
[312802879,1706271046783,-16553.2195008,0.0004198,10]
[312802901,1706271047262,-273.9259045,0.0004198,10]
[312803438,1706272234029,-291.769968,0.00034866,4]
[312803440,1706272234039,-2456.22872756,0.00034867,4]
[312803442,1706272234048,-291.769968,0.00034868,4]
[312803444,1706272234057,-291.769968,0.00034868,4]
[312803446,1706272234066,-183.9664733,0.00034874,2]
[312803448,1706272234075,-204.444846,0.00040008,2]
[312803450,1706272234084,-2110.67819949,0.0004002,2]
[312803771,1706272241266,-727.84726779,0.00034865,4]
[312803772,1706272241275,-1918.25273221,0.0004002,2]
[312803773,1706272241287,-1268.1520969,0.0004002,2]
[312803774,1706272241298,-5162.521486,0.0004002,2]
[312803775,1706272241307,-277.43,0.000406,4]
[312803776,1706272241316,-5127.63,0.00041,30]
[312803777,1706272241325,-959.632321,0.00041,2]
[312803778,1706272241334,-755.12928043,0.00041,14]
[312803779,1706272241346,-718.62288531,0.00041,14]
[312803780,1706272241355,-150.0,0.000415,32]
[312803781,1706272241364,-7184.54025277,0.000415,10]
[312803782,1706272241375,-715.85977522,0.000415,10]
[312803783,1706272241386,-255.64589774,0.000415,10]
[312803784,1706272241397,-306.58892855,0.000415,10]
[312803785,1706272241408,-312.2633,0.000415,10]
[312803825,1706272243253,-21185.10184572,0.000415,10]
[312803826,1706272243263,-3567.36,0.00041566,3]
[312803827,1706272243272,-2972.8,0.00041566,3]
[312803828,1706272243281,-2477.34,0.00041566,3]
[312803829,1706272243293,-20733.3640628,0.00041576,4]
[312803830,1706272243303,-14413.60585144,0.0004187,2]
[312803831,1706272243312,-500.0,0.00041969,2]
[312803832,1706272243322,-600.00474012,0.00041979,2]
[312803833,1706272243331,-81202.70244153,0.0004198,10]
[312803834,1706272243341,-636.22448508,0.0004198,4]
[312803835,1706272243350,-500.0,0.00041998,120]
[312803836,1706272243360,-500.0,0.00041998,120]
[312803837,1706272243369,-500.0,0.00041998,120]
[312803839,1706272243378,-500.0,0.00041998,120]
[312803840,1706272243386,-500.0,0.00041998,120]
[312803841,1706272243395,-500.0,0.00041998,120]
[312803842,1706272243404,-575.32,0.00041998,120]
[312803843,1706272243413,-169.57429663,0.00041998,4]
[312803844,1706272243422,-3579.81258704,0.00041998,4]
[312803845,1706272243431,-229.75083878,0.00041999,4]
[312803846,1706272243441,-2647.92315669,0.00041999,4]
[312803847,1706272243455,-10088.68870724,0.00042,30]
[312803848,1706272243464,-160.15252,0.00042165,30]
[312803849,1706272243474,-150.0,0.000429,18]
[312803850,1706272243483,-155.28863475,0.00042995,4]
[312803851,1706272243493,-169.37825405,0.00042995,4]
[312803852,1706272243502,-574.63018738,0.00042995,2]
[312803853,1706272243511,-208.24574178,0.00042995,4]
[312803854,1706272243519,-1445.17350617,0.00042995,4]
[312803855,1706272243530,-1184.38033422,0.00042995,4]
[312803856,1706272243540,-203.82600909,0.00042996,4]
[312803857,1706272243549,-835.81519392,0.00042996,4]
[312803858,1706272243558,-850.73963902,0.00042996,4]
[312803859,1706272243567,-1009.00537351,0.00042997,4]
[312803860,1706272243577,-2935.80153919,0.00042998,4]
[312803861,1706272243589,-17170.66228045,0.00042998,4]
[312803862,1706272243598,-956.33461266,0.00042998,4]
[312803863,1706272243607,-1109.51816487,0.00042998,4]
[312803864,1706272243616,-189.3589828,0.00042998,4]
[312803865,1706272243626,-755.90398441,0.00042998,4]
[312803866,1706272243634,-500.0,0.00042998,7]
[312803867,1706272243643,-20835.22197481,0.00043,14]
[312803868,1706272243655,-591.05084595,0.00043,14]
[312803884,1706272246375,-333.451392,0.00041997,4]
[312803885,1706272246386,-1470.92360554,0.00043,14]
[312803886,1706272246395,-160.0,0.00043079,3]
[312803887,1706272246405,-240.22878,0.00043193,30]
[312803888,1706272246414,-160.15252,0.00043193,30]
[312803889,1706272246424,-163.343131,0.00043193,30]
[312803890,1706272246435,-160.0,0.00043561,4]
[312803891,1706272246457,-301.77611122,0.00043833,4]
[312803892,1706272246467,-453.20212845,0.00043833,4]
[312803893,1706272246477,-298.52344794,0.00043834,4]
[312803894,1706272246487,-160.00064943,0.00043834,4]
[312803895,1706272246498,-155.09219294,0.00043834,4]
[312803896,1706272246509,-333.34,0.00043834,7]
[312803897,1706272246519,-333.34,0.00043834,7]
[312803898,1706272246530,-333.34,0.00043834,7]
[312803899,1706272246541,-333.34,0.00043834,7]
[312803900,1706272246551,-333.34,0.00043834,7]
[312803901,1706272246561,-333.34,0.00043834,7]
[312803902,1706272246571,-222.22,0.00043834,7]
[312803903,1706272246581,-259.28,0.00043834,7]
[312803904,1706272246592,-259.26,0.00043834,7]
[312803905,1706272246602,-1000.0,0.00043835,2]
[312803906,1706272246612,-467.10604148,0.00043835,31]
[312803944,1706272490785,-3027.0,0.000295,30]
[312803947,1706272694751,-541.7263236,0.00029497,2]
[312803948,1706272694774,-943.2736764,0.00029498,2]
[312803949,1706273283800,-541.7263236,0.00029488,2]
[312803950,1706273283822,-2003.83335234,0.00029489,2]
[312803951,1706273283845,-16363.44032406,0.00029489,2]
[312804021,1706273432556,-1828.13595294,0.00029488,2]
[312804023,1706273432567,-156.87404588,0.000295,30]
[312804025,1706273432576,-228.166666,0.00033094,2]
[312804027,1706273432585,-40.64109815,0.00033394,2]
[312804227,1706273443480,-4518.2416824,0.00033394,2]
[312804271,1706273447423,-14530.10969388,0.00033394,2]
[312804272,1706273447433,-3945.2738331,0.00033395,2]
[312804273,1706273447443,-166.666666,0.00033737,2]
[312804274,1706273447452,-2327.56109479,0.00034929,2]
[312804275,1706273447463,-543.09758878,0.00034929,2]
[312804276,1706273447471,-502.62870449,0.00035,14]
[312804277,1706273447480,-225.4616815,0.00035172,2]
[312804278,1706273447489,-3656.21,0.00037381,3]
[312804279,1706273447499,-3046.84,0.00037381,3]
[312804280,1706273447509,-300.0,0.00037389,4]
[312804281,1706273447518,-18909.22401992,0.00037389,4]
[312804282,1706273447527,-315.35047542,0.00037389,4]
[312804283,1706273447537,-832.82884697,0.00037389,4]
[312804284,1706273447546,-500.0,0.00037389,2]
[312804285,1706273447555,-1484.61502997,0.0003739,4]
[312804286,1706273447566,-33879.4251789,0.00037391,3]
[312804287,1706273447581,-1586.56564104,0.00037391,3]
[312804288,1706273447592,-4534.15764226,0.00037391,3]
[312804289,1706273447823,-2.60571743,0.00037391,3]
[312804290,1706273447835,-472.55486556,0.00037391,3]
[312804296,1706273670377,4791.46238905,0.0001,2]
[312804299,1706273729588,-240.96920724,0.00025,2]
[312804300,1706273729607,-1828.13595294,0.00025295,2]
[312804301,1706273729627,-9945.36507918,0.00025296,2]
[312804302,1706273729647,-8170.52976064,0.00025297,2]
[312804307,1706273799010,-1116.37599738,0.00025297,2]
[312804308,1706273799073,-165.62400262,0.00026,2]
[312804316,1706274196646,-75.79587913,0.00026,2]
[312804317,1706274196665,-155.11282928,0.00026,2]
[312804318,1706274196689,-548.30356127,0.00026,2]
[312804319,1706274196708,-665.78773032,0.00026,2]
[312804320,1706274263542,-680.48366856,0.00025999,2]
[312804321,1706274263564,-449.46050165,0.00026,2]
[312804322,1706274263585,-235.01682964,0.00026,2]
[312804323,1706274263608,-548.30356127,0.00026,2]
[312804324,1706274263628,-607.73543888,0.00026,2]
[312804325,1706274328354,-9945.36507918,0.00025999,2]
[312804326,1706274328375,-156.89451634,0.00026,2]
[312804327,1706274328395,-235.01682964,0.00026,2]
[312804328,1706274328416,-548.30356127,0.00026,2]
[312804329,1706274328436,-978.42001357,0.00026,2]
[312804330,1706274398810,-3497.0,0.00025997,2]
[312804332,1706274468592,-199.34410144,0.00025994,2]
[312804333,1706274468614,-541.7263236,0.00025995,2]
[312804334,1706274468636,-1828.13595294,0.00025996,2]
[312804335,1706274468657,-1714.82979801,0.00025997,2]
[312804336,1706274468678,-548.30356127,0.00025997,2]
[312804337,1706274468700,-321.66026274,0.00025997,2]
[312804338,1706274538202,-619.76686499,0.00025992,2]
[312804339,1706274538324,-2816.64859645,0.00025992,2]
[312804340,1706274538346,-680.48366856,0.00025993,2]
[312804341,1706274538367,-793.58796923,0.00025997,2]
[312804342,1706274538387,-301.51290077,0.00025997,2]
[312804407,1706274632567,-2836.32895206,0.00025996,2]
[312804454,1706274639150,-1587.66158615,0.00025996,2]
[312804511,1706274641698,-5521.37454097,0.00025996,2]
[312804512,1706274641708,-397.93449281,0.00025997,2]
[312804513,1706274641717,-1170.70844193,0.00025997,2]
[312804514,1706274641729,-50.9962713,0.00025997,2]
[312804515,1706274641738,-764.62995522,0.00026,2]
[312804516,1706274641747,-760.31790163,0.00026809,5]
[312804517,1706274641756,-210.879843,0.00026825,2]
[312804518,1706274641765,-199.34410144,0.00027461,2]
[312804519,1706274641775,-1828.13595294,0.00027461,2]
[312804520,1706274641784,-601.1767129,0.00027462,2]
[312804521,1706274641793,-23.20852734,0.00027499,2]
[312804522,1706274641804,-1798.56579084,0.00027499,2]
[312804523,1706274641816,-3390.05547983,0.00027499,2]
[312804524,1706274641825,-3208.0368372,0.000275,2]
[312804525,1706274641835,-4022.95618605,0.00027855,2]
[312804526,1706274641846,-3666.61091945,0.00027855,2]
[312804527,1706274641856,-680.48366856,0.00027997,2]
[312804528,1706274641866,-6549.2519583,0.00028,2]
[312804529,1706274641875,-200.0,0.00028599,15]
[312804530,1706274641885,-154.90705577,0.00029,2]
[312804531,1706274641894,-300.0,0.00029489,2]
[312804532,1706274641903,-303.54757009,0.00029489,2]
[312804533,1706274641912,-1197.85637947,0.0002949,2]
[312804534,1706274641923,-1597.94647562,0.0002949,2]
[312804535,1706274641932,-2539.03,0.00029779,3]
[312804536,1706274641943,-1499.48536377,0.0002978,3]
[312804537,1706274641954,-616.37463623,0.0002978,3]
[312804538,1706274641963,-500.0,0.00029787,2]
[312804539,1706274641972,-3175.63781053,0.00029788,2]
[312804550,1706274643649,-3057.0,0.00029788,2]
[312804566,1706274647050,-3.30925288,0.00029788,2]
[312804567,1706274647069,-13948.91105349,0.00029788,2]
[312804568,1706274647081,-555.06216325,0.00029788,2]
[312804569,1706274647092,-261.19714491,0.00029788,2]
[312804570,1706274647103,-155.31669725,0.00029788,2]
[312804571,1706274647114,-262.41441764,0.00029788,2]
[312804572,1706274647125,-541.7263236,0.00029788,2]
[312804573,1706274647136,-619.76686499,0.00029788,2]
[312804574,1706274647147,-2066.52655994,0.00029788,2]
[312804575,1706274647158,-1476.38309931,0.00029789,2]
[312804576,1706274647168,-588.5086678,0.00029789,2]
[312804577,1706274647180,-58719.8441042,0.0002979,7]
[312804578,1706274647191,-500.0,0.00029924,2]
[312804579,1706274647205,-4925.34004896,0.0003,2]
[312804580,1706274647217,-485.57524656,0.0003,2]
[312804581,1706274647229,-1002.06395874,0.0003,10]
[312804582,1706274647240,-12685.09152326,0.0003,30]
[312804583,1706274729987,-7965.10067001,0.00024656,2]
[312804584,1706274730007,-175.31396286,0.00024656,2]
[312804585,1706274730029,-166.77726809,0.00024656,2]
[312804586,1706274730049,-527.01508147,0.00024657,2]
[312804587,1706274730069,-710.092,0.00024658,3]
[312804588,1706274730089,-21697.17964081,0.00025996,2]
[312804589,1706274730109,-1452.52137676,0.00025997,2]
[312804597,1706275066105,-4726.99215817,0.00025982,2]
[312804598,1706275066125,-978.55548039,0.00025983,2]
[312804599,1706275066145,-1855.66219554,0.00025984,2]
[312804600,1706275066165,-154.90705577,0.00025984,2]
[312804601,1706275066185,-1860.15287723,0.00025997,2]
[312804602,1706275066206,-1115.24823197,0.00025997,2]
[312804603,1706275066227,-2085.83244318,0.00025997,2]
[312804604,1706275066247,-2816.64859645,0.00026553,2]
[312804605,1706275066267,-769.0009613,0.00026554,2]
[312804609,1706275266638,-5070.0407543,0.00025772,2]
[312804610,1706275266661,-1828.13595294,0.00025994,2]
[312804611,1706275266682,-761.37038767,0.00025995,5]
[312804612,1706275266709,-2084.06978789,0.00025997,2]
[312804613,1706275266731,-160.06153348,0.00025997,2]
[312804614,1706275266753,-250.0,0.00026051,2]
[312804615,1706275266776,-785.4398369,0.000261,2]
[312804616,1706275266797,-8766.88174682,0.00026614,2]
[312804618,1706275451576,166.0,0.00024658,2]
[312804637,1706275831719,-498.00832139,0.00024348,2]
[312804643,1706275831777,-1505.82503095,0.00024348,2]
[312804645,1706275831786,-978.55548039,0.00024349,2]
[312804647,1706275831796,-9945.36507918,0.00024349,2]
[312804649,1706275831805,-6013.4651163,0.0002435,2]
[312804651,1706275831816,-210.879843,0.00024613,2]
[312804653,1706275831826,-42.2,0.00024658,2]
[312804655,1706275831835,-250.0,0.00024823,2]
[312804657,1706275831844,-1828.13595294,0.00025278,2]
[312804659,1706275831853,-817.6132119,0.00025279,2]
[312804661,1706275831862,-4417.96028534,0.00025701,2]
[312804731,1706275839043,-244.09206596,0.00025701,2]
[312804732,1706275839052,-3804.10492709,0.00025771,2]
[312804733,1706275839157,-21095.89507291,0.00025771,2]
[312804734,1706275839167,-20094.84178573,0.00026613,2]
[312804735,1706275839176,-1414.65821236,0.00026798,2]
[312804736,1706275839187,-25.22798805,0.00026798,2]
[312804737,1706275839197,-647.45341436,0.000275,2]
[312804738,1706275839208,-1052.72631612,0.000275,2]
[312804749,1706275840925,-429.02026952,0.000275,2]
[312804750,1706275840934,-500.0,0.00027728,2]
[312804751,1706275840948,-500.0,0.00027865,2]
[312804752,1706275840957,-500.0,0.00028002,2]
[312804753,1706275840966,-306.85131256,0.00028139,2]
[312804754,1706275840976,-200.0,0.00028269,15]
[312804755,1706275840985,-154.90705577,0.00029499,2]
[312804756,1706275840994,-3027.0,0.000295,30]
[312804757,1706275841004,-306.0,0.00029541,2]
[312804758,1706275841013,-153.0,0.00029578,2]
[312804759,1706275841023,-153.0,0.00029578,2]
[312804760,1706275841032,-153.0,0.00029578,2]
[312804761,1706275841041,-153.0,0.00029578,2]
[312804762,1706275841050,-153.0,0.00029578,2]
[312804763,1706275841059,-153.0,0.00029678,2]
[312804764,1706275841069,-153.0,0.00029678,2]
[312804765,1706275841078,-129.16136215,0.00029678,2]
[312804766,1706275841089,-23.83863785,0.00029678,2]
[312804767,1706275841098,-398.5789488,0.00029678,2]
[312804768,1706275841107,-153.0,0.00029678,2]
[312804769,1706275841116,-153.0,0.00029678,2]
[312804770,1706275841124,-318.36560668,0.00029926,2]
[312804771,1706275841133,-311.84785912,0.00029927,2]
[312804772,1706275841144,-276.60098911,0.00029927,2]
[312804773,1706275841152,-2563.17750068,0.00029998,2]
[312804774,1706275841161,-328.52170495,0.00029998,2]
[312804775,1706275841170,-600.00474012,0.00029998,2]
[312804776,1706275841178,-262.88134353,0.00029998,2]
[312804777,1706275841187,-10492.06157663,0.0003,30]
[312804778,1706275841198,-300.0,0.0003,4]
[312804779,1706275841207,-4291.99988802,0.0003,4]
[312804780,1706275841216,-535.04170787,0.0003,4]
[312804781,1706275841225,-155.02455539,0.0003,4]
[312804782,1706275841233,-608.13565426,0.0003,4]
[312804783,1706275841242,-309.50479234,0.0003,4]
[312804784,1706275841251,-345.0,0.0003,2]
[312804785,1706275841259,-154.90705577,0.0003,4]
[312804786,1706275841268,-209.389921,0.00030137,2]
[312804787,1706275841277,-158.130944,0.00030137,2]
[312804788,1706275841286,-280.0,0.00031096,15]
[312804789,1706275841295,-209.389921,0.00031115,2]
[312804790,1706275841304,-158.130944,0.00031507,2]
[312804791,1706275841313,-195.54104758,0.00031998,2]
[312804792,1706275841321,-3138.0982032,0.00032,2]
[312804793,1706275841330,-26308.24557965,0.00032,15]
[312804794,1706275841339,-209.389921,0.00032094,2]
[312804795,1706275841347,-1439.88620041,0.00032199,4]
[312804796,1706275841356,-158.130944,0.00032877,2]
[312804797,1706275841365,-241.29412509,0.00032932,30]
[312804798,1706275841375,-276.75215884,0.00033,2]
[312804799,1706275841383,-1313.18787702,0.00033,2]
[312804819,1706275845868,-257.30468228,0.00026798,2]
[312804823,1706275846149,-1182.58151813,0.00026798,2]
[312804824,1706275846158,-715.65322126,0.00033,2]
[312804825,1706275846168,-176.0,0.00033,2]
[312804826,1706275846177,-209.389921,0.00033072,2]
[312804827,1706275846187,-209.389921,0.00034051,2]
[312804828,1706275846196,-391.0,0.00034206,15]
[312804829,1706275846206,-158.130944,0.00034247,2]
[312804830,1706275846216,-176.0,0.00034521,2]
[312804831,1706275846225,-155.17073965,0.00034986,2]
[312804832,1706275846234,-592.53064848,0.00035,2]
[312804833,1706275846243,-209.389921,0.00035029,2]
[312804834,1706275846252,-400.0,0.00035616,2]
[312804835,1706275846261,-158.130944,0.00035616,2]
[312804836,1706275846270,-209.389921,0.00036008,2]
[312804837,1706275846279,-155.0,0.00036389,2]
[312804838,1706275846288,-2147.69,0.0003658,3]
[312804839,1706275846297,-154.90705577,0.00036588,4]
[312804840,1706275846306,-13362.2947321,0.00036589,2]
[312804841,1706275846315,-67996.61760846,0.0003659,2]
[312804842,1706275846324,-7466.627247,0.0003659,2]
[312804843,1706275846333,-7466.627247,0.0003659,2]
[312804844,1706275846342,-351.787507,0.0003659,2]
[312804845,1706275846351,-351.787507,0.0003659,2]
[312804846,1706275846360,-1411.03597594,0.00036591,4]
[312804847,1706275846369,-4203.43687867,0.00036591,4]
[312804848,1706275846378,-1378.64036285,0.00036592,4]
[312804849,1706275846387,-151.0,0.00036592,2]
[312804850,1706275846397,-151.0,0.00036593,2]
[312804851,1706275846406,-151.0,0.00036593,2]
[312804852,1706275846415,-151.0,0.00036593,2]
[312804853,1706275846424,-151.0,0.00036593,2]
[312804854,1706275846433,-151.0,0.00036593,2]
[312804855,1706275846442,-151.0,0.00036593,2]
[312804856,1706275846452,-151.0,0.00036593,2]
[312804857,1706275846461,-151.0,0.00036593,2]
[312804858,1706275846471,-151.0,0.00036593,2]
[312804859,1706275846480,-151.0,0.00036593,2]
[312804860,1706275846489,-859.893229,0.00036593,2]
[312804861,1706275846499,-859.893229,0.00036593,2]
[312804862,1706275846508,-859.893229,0.00036593,2]
[312804863,1706275846519,-859.893229,0.00036593,2]
[312804864,1706275846529,-151.0,0.00036593,2]
[312804865,1706275846538,-151.0,0.00036593,2]
[312804866,1706275846552,-188.714816,0.00036593,2]
[312804867,1706275846571,-1259.18639135,0.00036593,2]
[312804870,1706275981126,-1485.05811791,0.00024657,2]
[312804871,1706275981146,-1998.94188209,0.00024658,2]
[312804872,1706276050736,-85.34844919,0.00024658,2]
[312804873,1706276050756,-154.92253873,0.00024658,2]
[312804874,1706276050776,-525.72901208,0.00024658,2]
[312804875,1706276119347,-155.74881665,0.00024558,2]
[312804876,1706276119367,-782.25118335,0.00024613,2]
[312804877,1706276184808,-104814.0,0.00024,2]
[312804881,1706276929127,2664.66022457,0.00018,5]
[312804882,1706276944221,548.30356127,0.00018,2]
[312804883,1706276962210,548.30356127,0.00018,2]
[312804884,1706276977839,400.52132555,0.00018,2]
[312804885,1706276980202,548.30356127,0.00018,2]
[312804886,1706276983530,1115.24823197,0.00018,2]
[312804887,1706276989726,154.95351395,0.00018,2]
[312804888,1706276991100,1110.30133816,0.00018,2]
[312804889,1706276993831,326.01696133,0.00018,2]
[312804891,1706277001527,1115.24823197,0.00018,2]
[312804892,1706277002241,324.08744996,0.00018,2]
[312804893,1706277005724,154.95351395,0.00018,2]
[312804894,1706277009126,1110.30133816,0.00018,2]
[312804895,1706277021506,1115.24823197,0.00018,2]
[312804896,1706277023726,165.02119446,0.00018,2]
[312804897,1706277025101,1110.30133816,0.00018,2]
[312804923,1706277031966,-262.4952811,0.0002385,2]
[312804925,1706277031975,-3747.87536289,0.0002385,2]
[312804927,1706277031984,-619.76686499,0.00023851,2]
[312804929,1706277031994,-159.36374991,0.00023852,2]
[312804931,1706277032003,-2816.64859645,0.0002395,2]
[312804933,1706277032011,-978.55548039,0.00023951,2]
[312804935,1706277032021,-9945.36507918,0.00023951,2]
[312804937,1706277032031,-2820.31533476,0.00023952,2]
[312804939,1706277032040,-199.34410144,0.00023954,2]
[312804941,1706277032049,-1713.0,0.00024,2]
[312804943,1706277032058,-343.09681091,0.00024,2]
[312804945,1706277032067,-791.91872808,0.00024,2]
[312804947,1706277032078,-1293.9137151,0.00024,2]
[312804949,1706277032087,-3312.67425399,0.00024613,2]
[312804951,1706277032096,-156.89451634,0.00025,2]
[312804953,1706277032105,-680.48366856,0.00025038,2]
[312804955,1706277032114,-865.59163255,0.00025038,2]
[312804981,1706277038100,-250.0,0.00023513,2]
[312804982,1706277038109,-199.34410144,0.00023849,2]
[312804983,1706277038119,-625.15059201,0.0002385,2]
[312804984,1706277038129,-237.28844722,0.0002385,2]
[312804985,1706277038159,-2583.02688754,0.0002385,2]
[312804986,1706277038168,-962.54432039,0.00025038,2]
[312804987,1706277038178,-24900.0,0.00025039,2]
[312804988,1706277038187,-891.340969,0.00025206,2]
[312804989,1706277038197,-159.36374988,0.00025695,2]
[312804990,1706277038208,-200.0,0.00026355,15]
[312804991,1706277038218,-155.51255994,0.00027443,2]
[312804992,1706277038227,-159.36374988,0.00027538,2]
[312804993,1706277038236,-280.0,0.0002899,15]
[312804994,1706277038245,-159.36374988,0.00029381,2]
[312804995,1706277038255,-13759.2755042,0.00029481,2]
[312804996,1706277038264,-1493.0231482,0.00029481,2]
[312804997,1706277038273,-154.95351395,0.00030136,4]
[312804998,1706277038282,-167.511937,0.00030137,2]
[312804999,1706277038291,-158.130944,0.00030137,2]
[312805000,1706277038300,-167.511937,0.00031659,2]
[312805001,1706277038310,-391.0,0.00031889,15]
[312805002,1706277038319,-761.37038767,0.00032931,30]
[312805003,1706277038328,-167.511937,0.00033181,2]
[312805004,1706277038337,-158.130944,0.0003379,2]
[312805005,1706277038346,-167.511937,0.00034703,2]
[312805006,1706277038355,-200.0,0.00035078,15]
[312805007,1706277038365,-348.0,0.00035078,15]
[312805008,1706277038374,-3486.61806957,0.00035858,4]
[312805009,1706277038384,-167.511937,0.00036225,2]
[312805010,1706277038394,-155.0,0.00036371,2]
[312805011,1706277038403,-3138.61,0.0003658,3]
[312805012,1706277038412,-2615.51,0.0003658,3]
[312805013,1706277038422,-3766.33,0.00036581,3]
[312805014,1706277038432,-1275.30456726,0.00036582,2]
[312805015,1706277038441,-1975.07,0.00036583,3]
[312805016,1706277038450,-20906.59632435,0.0003659,2]
[312805017,1706277038462,-258.44650479,0.0003659,4]
[312805022,1706277041085,-1225.72543724,0.0003659,4]
[312805023,1706277041097,-5211.82979801,0.0003659,4]
[312805024,1706277041108,-541.7263236,0.0003659,4]
[312805025,1706277041118,-1855.66219554,0.0003659,4]
[312805026,1706277041127,-329.86773658,0.0003659,4]
[312805027,1706277041140,-4397.12442159,0.0003659,4]
[312805028,1706277041149,-213.48757656,0.0003659,4]
[312805029,1706277041160,-181.63637746,0.0003659,4]
[312805030,1706277041170,-302.00997705,0.0003659,4]
[312805031,1706277041180,-244.16632618,0.0003659,4]
[312805032,1706277041189,-1993.99921548,0.0003659,4]
[312805033,1706277041198,-195.34407417,0.00036591,2]
[312805034,1706277041209,-203.79504935,0.00036591,4]
[312805035,1706277041219,-296.09595824,0.00036591,4]
[312805036,1706277041228,-154.92253873,0.00036591,4]
[312805037,1706277041237,-592.53064848,0.00036591,2]
[312805038,1706277041246,-171.52289858,0.00036591,4]
[312805039,1706277041255,-155.44929222,0.00036591,4]
[312805040,1706277041264,-309.78316417,0.00036591,4]
[312805041,1706277041273,-8913.09,0.00036592,2]
[312805042,1706277041282,-4819.91702765,0.00036592,2]
[312805043,1706277041294,-4093.17297235,0.00036592,2]
[312805044,1706277041303,-8913.09,0.00036592,2]
[312805045,1706277041312,-2231.69413633,0.00036592,2]
[312805046,1706277041324,-6681.39586367,0.00036592,2]
[312805047,1706277041332,-8913.09,0.00036592,2]
[312805048,1706277041342,-8913.09,0.00036592,2]
[312805049,1706277041351,-8913.09,0.00036592,2]
[312805050,1706277041360,-8913.09,0.00036592,2]
[312805051,1706277041369,-4291.99988802,0.00036593,4]
[312805052,1706277041380,-41669.81685663,0.00036593,30]
[312805053,1706277041393,-4367.52779391,0.00036593,30]
[312805054,1706277041404,-19073.3477026,0.00036593,30]
[312805055,1706277041416,-22190.53636703,0.00036593,30]
[312805056,1706277041425,-687.42555281,0.00036593,4]
[312805057,1706277041434,-287.482269,0.00036593,2]
[312805058,1706277041443,-151.0,0.00036593,2]
[312805059,1706277041453,-151.0,0.00036593,2]
[312805060,1706277041463,-151.0,0.00036593,2]
[312805061,1706277041473,-151.0,0.00036593,2]
[312805062,1706277041482,-151.0,0.00036593,2]
[312805063,1706277041491,-687.914583,0.00036593,2]
[312805064,1706277041501,-687.914583,0.00036593,2]
[312805065,1706277041510,-4115.213158,0.00036593,2]
[312805066,1706277041519,-836.67238657,0.00036593,2]
[312805100,1706277043102,-3278.54077143,0.00036593,2]
[312805102,1706277043111,-151.0,0.00036594,2]
[312805113,1706277043121,-151.0,0.00036594,2]
[312805115,1706277043212,-151.0,0.00036594,2]
[312805117,1706277043221,-151.0,0.00036594,2]
[312805119,1706277043230,-151.0,0.00036594,2]
[312805121,1706277043239,-687.914583,0.00036594,2]
[312805123,1706277043249,-687.914583,0.00036594,2]
[312805125,1706277043258,-278.32297347,0.00036594,2]
[312805129,1706277043285,1110.30133816,0.00018,2]
[312805132,1706277043309,-3836.89018453,0.00036594,2]
[312805134,1706277043318,-151.0,0.00036594,2]
[312805136,1706277043327,-10270.73615464,0.00037349,3]
[312805142,1706277043508,1115.24823197,0.00018,2]
[312805228,1706277046221,-1.03179427,0.0003659,4]
[312805234,1706277309052,-426.28921801,0.00024992,2]
[312805235,1706277309072,-280.71078199,0.00024993,2]